fUST/lending_fUST_20240808
["ID","MTS","AMOUNT","RATE_DAILY","PERIOD"]
[334430974,1723091441833,-500.0,0.00027397,7]
[334430975,1723091441841,-500.0,0.00027397,7]
[334430976,1723091441848,-151.0,0.00027397,7]
[334430977,1723091441857,-151.0,0.00027397,7]
[334430978,1723091441865,-1084.82,0.00027397,7]
[334430979,1723091441874,-151.0,0.00027397,7]
[334430980,1723091441884,-151.0,0.00027397,7]
[334430981,1723091441891,-500.0,0.00027397,7]
[334430982,1723091441900,-500.0,0.00027397,7]
[334430983,1723091441908,-983.15,0.00027397,7]
[334430984,1723091441916,-1342.76,0.00027397,7]
[334430985,1723091441925,-500.0,0.00027397,7]
[334430986,1723091441933,-539.02459896,0.00027397,7]
[334430987,1723091441941,-601.57,0.00027397,7]
[334430988,1723091441948,-500.0,0.00027397,7]
[334430989,1723091441957,-500.0,0.00027397,7]
[334430990,1723091441965,-533.08,0.00027397,7]
[334430991,1723091441973,-500.0,0.00027397,7]
[334430992,1723091441981,-502.35502771,0.00027397,7]
[334430993,1723091441990,-1080.67,0.00027397,7]
[334430994,1723091441999,-502.88479147,0.00027397,7]
[334430995,1723091442006,-1063.3,0.00027397,7]
[334430996,1723091442014,-503.9081312,0.00027397,7]
[334430997,1723091442021,-581.33432109,0.00027397,7]
[334430998,1723091442029,-151.0,0.00027397,7]
[334430999,1723091442036,-1456.58,0.00027397,7]
[334431000,1723091442045,-500.0,0.00027397,7]
[334431001,1723091442053,-505.8,0.00027397,7]
[334431002,1723091442061,-357.61939091,0.00027397,7]
[334431003,1723091442070,-502.13603599,0.00027397,7]
[334431004,1723091442079,-616.01,0.00027397,7]
[334431005,1723091442089,-983.42,0.00027397,7]
[334431006,1723091442099,-500.0,0.00027397,7]
[334431007,1723091442109,-500.0,0.00027397,7]
[334431008,1723091442119,-500.0,0.00027397,7]
[334431009,1723091442129,-500.0,0.00027397,7]
[334431010,1723091442139,-1451.55,0.00027397,7]
[334431011,1723091442149,-500.0,0.00027397,7]
[334431012,1723091442159,-500.0,0.00027397,7]
[334431013,1723091442169,-500.0,0.00027397,7]
[334431014,1723091442179,-1471.08,0.00027397,7]
[334431015,1723091442188,-500.0,0.00027397,7]
[334431016,1723091442197,-500.0,0.00027397,7]
[334431017,1723091442207,-500.0,0.00027397,7]
[334431018,1723091442217,-500.0,0.00027397,7]
[334431019,1723091442226,-500.0,0.00027397,7]
[334431020,1723091442236,-501.00062418,0.00027397,7]
[334431021,1723091442249,-1132.34,0.00027397,7]
[334431022,1723091442259,-500.0,0.00027397,7]
[334431023,1723091442269,-501.02875386,0.00027397,7]
[334431024,1723091442279,-500.0,0.00027397,7]
[334431025,1723091442289,-558.37,0.00027397,7]
[334431026,1723091442299,-371.19539826,0.00027397,7]
[334431027,1723091442308,-500.0,0.00027397,2]
[334431028,1723091442318,-500.0,0.00027397,2]
[334431029,1723091442327,-468.55653153,0.00027397,2]
[334431030,1723091442337,-714.03,0.00027397,7]
[334431031,1723091442347,-714.03,0.00027397,7]
[334431032,1723091442356,-714.03,0.00027397,7]
[334431033,1723091442365,-714.03,0.00027397,7]
[334431034,1723091442375,-714.03,0.00027397,7]
[334431035,1723091442384,-714.03,0.00027397,7]
[334431036,1723091442397,-714.03,0.00027397,7]
[334431037,1723091442407,-714.03,0.00027397,7]
[334431038,1723091442416,-714.03,0.00027397,7]
[334431039,1723091442426,-714.03,0.00027397,7]
[334431040,1723091442436,-500.0,0.00027397,7]
[334431041,1723091442447,-500.0,0.00027397,7]
[334431042,1723091442456,-151.0,0.00027397,7]
[334431043,1723091442465,-151.0,0.00027397,7]
[334431044,1723091442477,-151.0,0.00027397,7]
[334431045,1723091442487,-500.0,0.00027397,7]
[334431046,1723091442498,-1165.12,0.00027397,7]
[334431047,1723091442507,-151.0,0.00027397,7]
[334431048,1723091442516,-500.0,0.00027397,7]
[334431049,1723091442525,-242.772418,0.00027397,7]
[334431050,1723091442535,-500.0,0.00027397,7]
[334431051,1723091442545,-500.0,0.00027397,7]
[334431052,1723091442554,-500.0,0.00027397,7]
[334431053,1723091442563,-500.0,0.00027397,7]
[334431054,1723091442573,-548.7,0.00027397,7]
[334431055,1723091442583,-500.0,0.00027397,7]
[334431056,1723091442592,-500.0,0.00027397,7]
[334431057,1723091442601,-500.0,0.00027397,7]
[334431058,1723091442611,-500.0,0.00027397,7]
[334431059,1723091442620,-500.0,0.00027397,7]
[334431061,1723091442630,-156.565714,0.00027397,7]
[334431063,1723091442639,-858.08,0.00027397,7]
[334431064,1723091442648,-588.47,0.00027397,7]
[334431065,1723091442658,-548.19204473,0.00027397,2]
[334431066,1723091442668,-500.0,0.00027397,7]
[334431067,1723091442678,-151.0,0.00027397,7]
[334431068,1723091442688,-151.0,0.00027397,7]
[334431069,1723091442698,-151.0,0.00027397,7]
[334431070,1723091442707,-151.0,0.00027397,7]
[334431072,1723091442717,-1329.33,0.00027397,7]
[334431074,1723091442726,-500.0,0.00027397,7]
[334431075,1723091442736,-1027.23,0.00027397,7]
[334431076,1723091442748,-566.8322756,0.00027397,7]
[334431077,1723091442758,-152.989356,0.00027397,7]
[334431078,1723091442767,-500.0,0.00027397,7]
[334431079,1723091442777,-544.15,0.00027397,7]
[334431080,1723091442788,-503.31607634,0.00027397,7]
[334431081,1723091442797,-500.0,0.00027397,7]
[334431082,1723091442807,-500.0,0.00027397,7]
[334431083,1723091442816,-1825.02,0.00027397,7]
[334431085,1723091442826,-151.0,0.00027397,7]
[334431086,1723091442835,-151.0,0.00027397,7]
[334431087,1723091442845,-151.0,0.00027397,7]
[334431088,1723091442854,-151.0,0.00027397,7]
[334431089,1723091442864,-151.0,0.00027397,7]
[334431090,1723091442873,-500.0,0.00027397,7]
[334431091,1723091442883,-151.0,0.00027397,7]
[334431092,1723091442894,-215.699953,0.00027397,7]
[334431093,1723091442904,-500.0,0.00027397,7]
[334431094,1723091442914,-761.93,0.00027397,7]
[334431095,1723091442923,-151.0,0.00027397,7]
[334431096,1723091442933,-151.0,0.00027397,7]
[334431097,1723091442942,-151.0,0.00027397,7]
[334431099,1723091442952,-151.0,0.00027397,7]
[334431101,1723091442962,-3541.65,0.00027397,7]
[334431103,1723091442971,-1376.4,0.00027397,7]
[334431104,1723091442981,-500.0,0.00027397,7]
[334431105,1723091442990,-500.0,0.00027397,7]
[334431106,1723091443007,-517.05,0.00027397,7]
[334431108,1723091443016,-500.0,0.00027397,7]
[334431110,1723091443025,-500.0,0.00027397,7]
[334431111,1723091443034,-500.0,0.00027397,7]
[334431112,1723091443043,-500.0,0.00027397,7]
[334431113,1723091443054,-584.98414925,0.00027397,7]
[334431114,1723091443063,-2592.19,0.00027397,7]
[334431115,1723091443073,-500.0,0.00027397,7]
[334431116,1723091443082,-2107.39,0.00027397,7]
[334431117,1723091443091,-2975.77,0.00027397,7]
[334431118,1723091443100,-1906.27,0.00027397,7]
[334431119,1723091443109,-500.0,0.00027397,7]
[334431120,1723091443119,-500.0,0.00027397,7]
[334431121,1723091443129,-500.0,0.00027397,7]
[334431122,1723091443139,-500.0,0.00027397,7]
[334431123,1723091443148,-500.0,0.00027397,7]
[334431124,1723091443158,-500.0,0.00027397,7]
[334431125,1723091443167,-500.0,0.00027397,7]
[334431126,1723091443177,-151.0,0.00027397,7]
[334431127,1723091443187,-500.0,0.00027397,7]
[334431128,1723091443196,-151.0,0.00027397,7]
[334431129,1723091443206,-500.0,0.00027397,7]
[334431130,1723091443216,-151.0,0.00027397,7]
[334431131,1723091443225,-500.0,0.00027397,7]
[334431132,1723091443235,-151.0,0.00027397,7]
[334431133,1723091443245,-500.0,0.00027397,7]
[334431134,1723091443255,-500.0,0.00027397,7]
[334431135,1723091443264,-500.0,0.00027397,7]
[334431136,1723091443274,-500.0,0.00027397,7]
[334431137,1723091443283,-503.92345696,0.00027397,7]
[334431138,1723091443293,-169.63254197,0.00027397,7]
[334431139,1723091443302,-1010.67,0.00027397,7]
[334431140,1723091443312,-543.25624282,0.00027397,7]
[334431141,1723091443322,-500.0,0.00027397,7]
[334431142,1723091443331,-500.0,0.00027397,7]
[334431143,1723091443341,-505.05980849,0.00027397,7]
[334431144,1723091443350,-500.0,0.00027397,7]
[334431145,1723091443360,-4097.14,0.00027397,7]
[334431146,1723091443370,-151.0,0.00027397,7]
[334431147,1723091443380,-151.0,0.00027397,7]
[334431148,1723091443390,-151.0,0.00027397,7]
[334431149,1723091443404,-500.0,0.00027397,7]
[334431151,1723091443414,-151.0,0.00027397,7]
[334431153,1723091443423,-2780.86,0.00027397,7]
[334431156,1723091443433,-500.0,0.00027397,7]
[334431157,1723091443443,-500.0,0.00027397,7]
[334431160,1723091443452,-151.0,0.00027397,7]
[334431162,1723091443463,-151.0,0.00027397,7]
[334431163,1723091443473,-548.67,0.00027397,7]
[334431164,1723091443483,-238.905644,0.00027397,7]
[334431165,1723091443496,-500.0,0.00027397,7]
[334431166,1723091443511,-2544.2,0.00027397,7]
[334431167,1723091443520,-500.0,0.00027397,7]
[334431168,1723091443530,-151.0,0.00027397,7]
[334431169,1723091443539,-151.0,0.00027397,7]
[334431170,1723091443548,-2187.08,0.00027397,7]
[334431171,1723091443558,-151.0,0.00027397,7]
[334431172,1723091443568,-151.0,0.00027397,7]
[334431174,1723091443578,-475.17213188,0.00027397,7]
[334431175,1723091443587,-500.0,0.00027397,7]
[334431177,1723091443595,-500.0,0.00027397,7]
[334431179,1723091443605,-151.0,0.00027397,7]
[334431180,1723091443613,-209.195549,0.00027397,7]
[334431181,1723091443622,-507.73983698,0.00027397,7]
[334431182,1723091443631,-646.16877691,0.00027397,7]
[334431183,1723091443640,-500.0,0.00027397,7]
[334431184,1723091443650,-500.0,0.00027397,7]
[334431185,1723091443660,-2927.33,0.00027397,7]
[334431186,1723091443670,-500.0,0.00027397,7]
[334431187,1723091443680,-500.0,0.00027397,7]
[334431188,1723091443690,-500.0,0.00027397,7]
[334431189,1723091443699,-533.88832438,0.00027397,7]
[334431190,1723091443708,-502.43835834,0.00027397,7]
[334431191,1723091443718,-500.86677046,0.00027397,7]
[334431192,1723091443727,-500.0,0.00027397,7]
[334431193,1723091443737,-500.0,0.00027397,7]
[334431194,1723091443748,-500.0,0.00027397,7]
[334431195,1723091443757,-279.90491616,0.00027397,7]
[334431196,1723091443766,-503.60324187,0.00027397,7]
[334431197,1723091443776,-500.0,0.00027397,7]
[334431198,1723091443786,-500.0,0.00027397,7]
[334431199,1723091443796,-500.0,0.00027397,7]
[334431200,1723091443806,-2608.56,0.00027397,7]
[334431201,1723091443816,-500.0,0.00027397,7]
[334431202,1723091443826,-500.0,0.00027397,7]
[334431203,1723091443836,-503.88671364,0.00027397,7]
[334431204,1723091443849,-500.0,0.00027397,7]
[334431205,1723091443859,-500.0,0.00027397,7]
[334431206,1723091443868,-500.0,0.00027397,7]
[334431207,1723091443878,-504.50701379,0.00027397,7]
[334431208,1723091443887,-726.71,0.00027397,7]
[334431209,1723091443896,-648.77,0.00027397,7]
[334431210,1723091443906,-500.0,0.00027397,7]
[334431211,1723091443918,-13061.44,0.00027397,7]
[334431212,1723091443929,-503.11197055,0.00027397,7]
[334431213,1723091443938,-500.0,0.00027397,7]
[334431214,1723091443947,-500.0,0.00027397,7]
[334431215,1723091443959,-151.0,0.00027397,7]
[334431216,1723091443968,-151.0,0.00027397,7]
[334431217,1723091443979,-814.74,0.00027397,7]
[334431218,1723091443988,-151.0,0.00027397,7]
[334431219,1723091443999,-500.0,0.00027397,7]
[334431220,1723091444009,-151.0,0.00027397,7]
[334431221,1723091444019,-285.63167,0.00027397,7]
[334431222,1723091444030,-500.0,0.00027397,7]
[334431223,1723091444040,-504.395212,0.00027397,7]
[334431224,1723091444052,-712.14,0.00027397,7]
[334431225,1723091444062,-944.14,0.00027397,7]
[334431226,1723091444071,-2551.75,0.00027397,7]
[334431227,1723091444081,-151.0,0.00027397,7]
[334431228,1723091444091,-38.87577586,0.00027397,7]
[334431229,1723091444521,-461.12422414,0.00027397,7]
[334431230,1723091444532,-1063.83,0.00027397,7]
[334431231,1723091444543,-3482.5,0.00027397,7]
[334431232,1723091444553,-500.0,0.00027397,7]
[334431233,1723091444564,-500.0,0.00027397,7]
[334431234,1723091444574,-500.0,0.00027397,7]
[334431235,1723091444584,-2189.51,0.00027397,7]
[334431236,1723091444594,-692.88,0.00027397,7]
[334431237,1723091444603,-500.0,0.00027397,7]
[334431238,1723091444613,-3917.99,0.00027397,7]
[334431239,1723091444622,-500.0,0.00027397,7]
[334431240,1723091444633,-1240.21,0.00027397,7]
[334431241,1723091444643,-500.0,0.00027397,7]
[334431242,1723091444653,-500.0,0.00027397,7]
[334431243,1723091444664,-1132.19,0.00027397,7]
[334431244,1723091444674,-500.0,0.00027397,7]
[334431245,1723091444684,-538.027425,0.00027397,7]
[334431246,1723091444695,-538.027425,0.00027397,7]
[334431247,1723091444705,-538.027425,0.00027397,7]
[334431248,1723091444714,-538.027425,0.00027397,7]
[334431249,1723091444724,-538.027425,0.00027397,7]
[334431250,1723091444733,-538.027425,0.00027397,7]
[334431251,1723091444743,-538.027425,0.00027397,7]
[334431252,1723091444752,-538.027425,0.00027397,7]
[334431253,1723091444761,-8070.03,0.00027397,7]
[334431254,1723091444770,-1012.78,0.00027397,7]
[334431255,1723091444781,-153.502971,0.00027397,7]
[334431256,1723091444792,-500.0,0.00027397,7]
[334431257,1723091444801,-500.0,0.00027397,7]
[334431258,1723091444811,-151.0,0.00027397,7]
[334431259,1723091444821,-300.443993,0.00027397,7]
[334431260,1723091444831,-1360.02,0.00027397,7]
[334431261,1723091444840,-151.0,0.00027397,7]
[334431262,1723091444850,-151.0,0.00027397,7]
[334431263,1723091444859,-502.38517328,0.00027397,7]
[334431264,1723091444869,-1494.67,0.00027397,7]
[334431265,1723091444878,-151.0,0.00027397,7]
[334431266,1723091444887,-151.0,0.00027397,7]
[334431267,1723091444896,-500.0,0.00027397,7]
[334431268,1723091444906,-501.60012799,0.00027397,7]
[334431269,1723091444916,-530.95302665,0.00027397,7]
[334431270,1723091444926,-1232.1,0.00027397,7]
[334431271,1723091444936,-500.0,0.00027397,7]
[334431272,1723091444945,-5515.02,0.00027397,7]
[334431273,1723091444954,-500.0,0.00027397,7]
[334431274,1723091444965,-981.93,0.00027397,7]
[334431275,1723091444974,-3292.37,0.00027397,7]
[334431276,1723091444984,-747.25,0.00027397,7]
[334431277,1723091444993,-151.0,0.00027397,7]
[334431278,1723091445002,-151.0,0.00027397,7]
[334431279,1723091445013,-151.0,0.00027397,7]
[334431280,1723091445022,-500.0,0.00027397,7]
[334431281,1723091445031,-151.0,0.00027397,7]
[334431282,1723091445040,-151.0,0.00027397,7]
[334431283,1723091445049,-151.0,0.00027397,7]
[334431284,1723091445059,-502.02,0.00027397,7]
[334431285,1723091445068,-151.0,0.00027397,7]
[334431286,1723091445077,-151.0,0.00027397,7]
[334431287,1723091445086,-500.0,0.00027397,7]
[334431288,1723091445096,-500.0,0.00027397,7]
[334431289,1723091445106,-560.14,0.00027397,7]
[334431290,1723091445115,-2295.79,0.00027397,7]
[334431291,1723091445124,-151.0,0.00027397,7]
[334431292,1723091445134,-500.0,0.00027397,7]
[334431293,1723091445143,-152.589328,0.00027397,7]
[334431294,1723091445153,-500.0,0.00027397,7]
[334431295,1723091445162,-8418.7,0.00027397,7]
[334431296,1723091445171,-1940.47,0.00027397,7]
[334431297,1723091445181,-500.0,0.00027397,7]
[334431298,1723091445191,-1204.08,0.00027397,7]
[334431299,1723091445200,-4865.86,0.00027397,7]
[334431300,1723091445209,-2417.99,0.00027397,7]
[334431301,1723091445219,-500.0,0.00027397,7]
[334431302,1723091445228,-1611.22,0.00027397,7]
[334431303,1723091445237,-1958.91,0.00027397,7]
[334431304,1723091445248,-5461.06,0.00027397,7]
[334431305,1723091445257,-753.94,0.00027397,7]
[334431306,1723091445266,-378.30432144,0.00027397,7]
[334431307,1723091445275,-281.30454022,0.00027397,7]
[334431308,1723091445284,-500.0,0.00027397,7]
[334431309,1723091445293,-500.0,0.00027397,7]
[334431310,1723091445302,-500.0,0.00027397,7]
[334431311,1723091445312,-1376.45,0.00027397,7]
[334431312,1723091445322,-1216.45,0.00027397,7]
[334431313,1723091445331,-500.0,0.00027397,7]
[334431314,1723091445340,-348.45745731,0.00027397,7]
[334431315,1723091445349,-512.8,0.00027397,7]
[334431316,1723091445358,-3011.1,0.00027397,7]
[334431317,1723091445367,-501.77496475,0.00027397,7]
[334431318,1723091445377,-500.0,0.00027397,7]
[334431319,1723091445386,-502.07903161,0.00027397,7]
[334431320,1723091445398,-500.0,0.00027397,7]
[334431321,1723091445408,-500.0,0.00027397,7]
[334431322,1723091445418,-500.0,0.00027397,7]
[334431323,1723091445427,-500.0,0.00027397,7]
[334431324,1723091445438,-500.0,0.00027397,7]
[334431325,1723091445448,-527.49,0.00027397,7]
[334431326,1723091445459,-116.19651504,0.00027397,7]
[334431349,1723091446164,-34.28821518,0.00027387,3]
[334431351,1723091446192,-158.2214031,0.00027387,3]
[334431358,1723091788916,168.502197,0.00014247,2]
[334431372,1723092436550,4986.8,0.00019,10]
[334431471,1723092556127,-273.18649696,0.00015744,2]
[334431472,1723092556150,-810.1149959,0.00015744,2]
[334431473,1723092556171,-380.98727375,0.00015746,2]
[334431474,1723092556202,-635.16875018,0.00015751,2]
[334431475,1723092556223,-305.59981169,0.00015751,2]
[334431476,1723092556245,-157.35838167,0.00015751,2]
[334431477,1723092556266,-192.26710228,0.00015751,2]
[334431478,1723092556287,-459.69835721,0.00015954,4]
[334431479,1723092556645,217.5822269,0.00016347,2]
[334431520,1723092632329,-412.4177731,0.00016309,2]
[334431521,1723092632339,-154.95132681,0.00016347,2]
[334431522,1723092632349,-89.53968825,0.0002,2]
[334431523,1723092632361,-146.63897525,0.0002,2]
[334431524,1723092632371,-496.47398639,0.00020721,2]
[334431525,1723092632382,-330.16929475,0.00021011,2]
[334431526,1723092632393,-5012.15720808,0.00021777,3]
[334431527,1723092632402,-500.0,0.0002202,2]
[334431528,1723092632411,-506.08076031,0.00023121,2]
[334431529,1723092632420,-154.68290005,0.00025,2]
[334431530,1723092632430,-691.43345579,0.00025,2]
[334431551,1723092638431,-1139.56654421,0.00025,2]
[334431552,1723092638442,-200.0,0.00026027,2]
[334431553,1723092638452,-593.0799965,0.00026078,2]
[334431554,1723092638462,-64.35345929,0.00027123,2]
[334431562,1723092642078,-207.01515691,0.00027123,2]
[334431563,1723092642092,-832.73411222,0.00027297,3]
[334431564,1723092642102,-2000.0,0.00027297,2]
[334431565,1723092642111,-151.35402705,0.00027332,2]
[334431566,1723092642121,-24135.137146,0.00027387,3]
[334431567,1723092642131,-10134.04651165,0.00027387,3]
[334431603,1723092779701,166.301279,0.00014247,2]
[334431609,1723093194474,151.0,0.00027,120]
[334431629,1723093685849,166.301279,0.00014247,2]
[334431630,1723093763254,-156.68452589,0.0002,2]
[334431631,1723093763275,-404.71507901,0.0002028,2]
[334431632,1723093763297,-309.24894227,0.0002028,2]
[334431633,1723093765466,543.18145857,0.00019999,2]
[334431634,1723093829272,486.68967021,0.00021916,2]
[334431639,1723093832408,-609.5915333,0.00024907,2]
[334431640,1723093832418,-172.310021,0.0002545,2]
[334431641,1723093832429,-200.0,0.00026027,2]
[334431642,1723093832439,-300.0,0.00026899,2]
[334431643,1723093832451,-506.38499306,0.000269,2]
[334431652,1723093838631,-2349.05949369,0.000269,2]
[334431653,1723093838690,-333.04240939,0.000269,2]
[334431654,1723093838702,-3349.68682433,0.000269,2]
[334431679,1723093840829,-2462.12009767,0.000269,2]
[334431680,1723093840839,-151.35402705,0.00026946,2]
[334431681,1723093840849,-500.0,0.00026989,2]
[334431682,1723093840860,-500.0,0.00026989,2]
[334431683,1723093840870,-15923.7605896,0.0002699,3]
[334431684,1723093840880,-14858.93,0.0002699,3]
[334431685,1723093840891,-395.80324177,0.00026999,2]
[334431686,1723093840902,-165476.0,0.00027,2]
[334431687,1723093840912,-150.112234,0.00027,7]
[334431688,1723093840924,-1412.0,0.00027067,2]
[334431689,1723093840934,-150.112233,0.000271,9]
[334431690,1723093840944,-779.6195073,0.0002713,2]
[334431691,1723093840955,-151.0,0.00027174,4]
[334431692,1723093840965,-151.0,0.00027174,4]
[334431693,1723093840975,-779.6195073,0.00027186,2]
[334431694,1723093840985,-150.112233,0.000272,7]
[334431695,1723093840997,-779.6195073,0.00027241,2]
[334431696,1723093841007,-5307.92019653,0.00027287,3]
[334431697,1723093841017,-2000.0,0.00027297,2]
[334431698,1723093841027,-2000.0,0.00027297,2]
[334431699,1723093841039,-832.73411222,0.00027297,3]
[334431700,1723093841049,-779.6195073,0.00027297,2]
[334431701,1723093841060,-1561.35933729,0.00027297,2]
[334431702,1723093841071,-150.112233,0.000273,9]
[334431703,1723093841080,-5307.92019653,0.00027377,3]
[334431704,1723093841091,-53079.2019653,0.00027387,3]
[334431705,1723093841103,-150.01,0.00027396,2]
[334431706,1723093841113,-2536.44477156,0.00027396,2]
[334431707,1723093841123,-500.0,0.00027397,2]
[334431708,1723093841133,-500.0,0.00027397,2]
[334431709,1723093841143,-468.55653153,0.00027397,2]
[334431710,1723093841157,-500.0,0.00027397,7]
[334431711,1723093841168,-502.2975051,0.00027397,7]
[334431712,1723093841178,-1183.81,0.00027397,7]
[334431713,1723093841188,-571.63,0.00027397,7]
[334431714,1723093841199,-500.0,0.00027397,7]
[334431715,1723093841210,-500.0,0.00027397,7]
[334431716,1723093841220,-500.0,0.00027397,2]
[334431717,1723093841232,-151.0,0.00027397,7]
[334431718,1723093841243,-153.67541,0.00027397,7]
[334431719,1723093841253,-500.0,0.00027397,7]
[334431720,1723093841262,-500.0,0.00027397,7]
[334431721,1723093841272,-500.0,0.00027397,7]
[334431722,1723093841282,-500.0,0.00027397,7]
[334431723,1723093841292,-500.0,0.00027397,7]
[334431724,1723093841303,-503.31607634,0.00027397,7]
[334431725,1723093841313,-517.05,0.00027397,7]
[334431726,1723093841537,-544.15,0.00027397,7]
[334431727,1723093841548,-500.0,0.00027397,7]
[334431728,1723093841558,-500.0,0.00027397,7]
[334431729,1723093841568,-503.92345696,0.00027397,7]
[334431730,1723093841579,-543.25624282,0.00027397,7]
[334431731,1723093841588,-505.05980849,0.00027397,7]
[334431732,1723093841599,-500.0,0.00027397,7]
[334431733,1723093841609,-500.0,0.00027397,7]
[334431734,1723093841622,-500.0,0.00027397,7]
[334431735,1723093841632,-500.0,0.00027397,7]
[334431736,1723093841642,-500.0,0.00027397,7]
[334431737,1723093841655,-533.88832438,0.00027397,7]
[334431738,1723093841665,-502.43835834,0.00027397,7]
[334431739,1723093841674,-500.0,0.00027397,7]
[334431740,1723093841684,-500.0,0.00027397,7]
[334431741,1723093841694,-500.0,0.00027397,7]
[334431742,1723093841704,-279.90491616,0.00027397,7]
[334431743,1723093841714,-646.16877691,0.00027397,7]
[334431744,1723093841723,-503.60324187,0.00027397,7]
[334431745,1723093841734,-500.0,0.00027397,7]
[334431746,1723093841745,-500.0,0.00027397,7]
[334431747,1723093841757,-507.73983698,0.00027397,7]
[334431748,1723093841768,-503.88671364,0.00027397,7]
[334431749,1723093841781,-500.86677046,0.00027397,7]
[334431750,1723093841792,-504.50701379,0.00027397,7]
[334431751,1723093841803,-500.0,0.00027397,7]
[334431752,1723093841813,-500.0,0.00027397,7]
[334431753,1723093841823,-500.0,0.00027397,7]
[334431754,1723093841832,-500.0,0.00027397,7]
[334431755,1723093841841,-500.0,0.00027397,7]
[334431756,1723093841851,-500.0,0.00027397,7]
[334431757,1723093841860,-151.0,0.00027397,7]
[334431758,1723093841869,-500.0,0.00027397,7]
[334431759,1723093841879,-500.0,0.00027397,7]
[334431760,1723093841888,-500.0,0.00027397,7]
[334431761,1723093841897,-500.0,0.00027397,7]
[334431762,1723093841915,-500.0,0.00027397,7]
[334431763,1723093841925,-500.0,0.00027397,7]
[334431764,1723093841934,-500.0,0.00027397,7]
[334431765,1723093841943,-153.502971,0.00027397,7]
[334431766,1723093841953,-500.0,0.00027397,7]
[334431767,1723093841962,-500.0,0.00027397,7]
[334431768,1723093841971,-500.0,0.00027397,7]
[334431769,1723093841981,-502.38517328,0.00027397,7]
[334431770,1723093841990,-500.0,0.00027397,7]
[334431771,1723093841999,-530.95302665,0.00027397,7]
[334431772,1723093842010,-981.93,0.00027397,7]
[334431773,1723093842019,-500.0,0.00027397,7]
[334431774,1723093842028,-504.82248317,0.00027397,7]
[334431775,1723093842038,-500.0,0.00027397,7]
[334431776,1723093842049,-500.0,0.00027397,7]
[334431777,1723093842058,-500.0,0.00027397,7]
[334431778,1723093842068,-500.0,0.00027397,7]
[334431779,1723093842078,-501.49119047,0.00027397,7]
[334431780,1723093842088,-500.0,0.00027397,7]
[334431781,1723093842097,-549.43,0.00027397,7]
[334431782,1723093842107,-526.78759238,0.00027397,7]
[334431783,1723093842116,-500.0,0.00027397,7]
[334431784,1723093842127,-632.50901331,0.00027397,7]
[334431785,1723093842136,-502.16653825,0.00027397,7]
[334431786,1723093842146,-500.0,0.00027397,7]
[334431787,1723093842159,-501.49324101,0.00027397,7]
[334431788,1723093842168,-164.03824881,0.00027397,7]
[334431789,1723093842178,-500.0,0.00027397,7]
[334431790,1723093842189,-500.0,0.00027397,7]
[334431791,1723093842202,-500.0,0.00027397,7]
[334431792,1723093842212,-500.0,0.00027397,7]
[334431793,1723093842222,-500.0,0.00027397,7]
[334431794,1723093842231,-500.0,0.00027397,7]
[334431795,1723093842244,-500.0,0.00027397,7]